{"text_format":"1","workbook":"xlsx","n_sheets":1,"sheets":["Feuille 1"],"not_rendered":{"charts":0,"images":0,"macros":1,"external_links":0,"defined_names":1,"comments":0,"pivot_tables":0},"unopened":[],"bounds":{"document_bytes":16777216,"sheet_cells":100000,"rows_first":2000,"rows_last":500,"rows_between":2000,"halvings":0,"cell_chars":16384,"cell_head_chars":4096},"cells_cut":0,"cells_raw":0,"read":"whole","date_system":"1900"}

{"sheet":"Feuille 1","index":0,"n_rows":100,"n_cols":18,"rows_kept":100,"cut":false,"hidden":false,"merged":[[0,5,0,6],[18,5,18,6],[3,5,3,6],[4,5,4,6],[32,3,33,3],[1,19,2,19],[1,16,1,17],[1,5,1,6],[2,5,2,6],[32,2,33,2]]}
[1,"2022-06-09",null,null,null,"N° du BON :",null,6,null,null,24,320,4]
[null,null,null,"08:00:00",1,null,null,"08:50:00",2,null,36,320,4]
[null,null,null,"07:30:00",4,null,null,"13:30:00",3]
[null,null,"00:30:00",{"$f":"D3+C4","v":"08:00:00"},null,null,null,{"$f":"H3-H2","v":"04:40:00"}]
[null,null,null,null,1,null,null,"02:00:00"]
[null,null,null,null,2,"ATTENTE ",null,{"$f":"IF(H2>D2,H2-D2,\"\")","v":3.4722222222222265E-2}]
[null,null,null,null,3,null,{"$f":"IF($C6>0,$G6+1,\"\")","v":""}]
["Remettre la dernière info à la ligne suivante",null,null,null,4,null,""]
[null,null,null,null,5,null,""]
[null,null,null,null,6,null,""]
[null,null,null,null,7,null,""]
[null,null,null,null,8,null,""]
[null,null,null,null,9,null,""]
[null,null,null,null,10,null,""]
[null,null,null,null,11,null,""]
[null,null,null,null,12,null,""]
[null,null,null,null,null,null,""]
[{"$f":"F4","v":0},{"$f":"H4","v":"04:40:00"},null,null,null,"H. ATTENTE",null,{"$f":"H6+H7+H8+H9","v":3.4722222222222265E-2},"2-1"]
[null,{"$f":"B18*1440","v":279.99999999999994},12.5]
[null,{"$f":"60*C19/15","v":50},{"$f":"B20/(24*60)","v":"00:50:00"}]
[null,120,null,null,1]
[null,{"$f":"H4-C20","v":"03:50:00"},{"$f":"IF(B20>B19,\"OK\",\"A PAYER\")","v":"A PAYER"}]
[null,{"$f":"IF(B22<=0,0,IF(B22>0,B22/1440))","v":"00:00:09.583"}]
["ARRONDI A :",{"$f":"ROUND(B22*96,0)/96","v":"03:45:00"},"heures",1,null,"T O T A L",null,{"$f":"SUM(H20:H23)","v":0}]
[]
[null,null,null,null,null,null,"2021-04-01"]
[]
[]
[]
[null,null,null,null,null,null,null,null,null,null,null,null,null,null,null,null,{"$f":"IF($C29>$D28,$C29-D28,\"\")","v":""}]
[null,null,null,null,null,null,null,null,null,null,null,null,null,null,null,null,"",{"$f":"IF($C31>0,C31-D30,\"\")","v":""}]
[null,null,null,null,null,null,null,null,null,null,null,null,null,null,null,null,"",""]
[null,null,null,null,null,null,null,null,null,null,null,null,null,null,null,null,"",""]
[null,null,null,null,null,null,null,null,null,null,null,null,null,null,null,null,"",""]
[null,null,null,null,null,null,null,null,null,null,null,null,null,null,null,null,"",""]
[null,null,null,null,null,null,null,null,null,null,null,null,null,null,null,null,"",""]
[null,null,null,null,null,null,null,null,null,null,null,null,null,null,null,null,"",""]
[null,null,null,null,null,null,null,null,null,null,null,null,null,null,null,null,"",""]
[null,null,null,null,null,null,null,null,null,null,null,null,null,null,null,null,"",""]
[null,null,null,null,null,null,null,null,null,null,null,null,null,null,null,null,"",""]
[null,null,null,null,null,null,null,null,null,null,null,null,null,null,null,null,"",""]
[null,null,null,null,null,null,null,null,null,null,null,null,null,null,null,null,"",""]
[null,null,null,null,null,null,null,null,null,null,null,null,null,null,null,null,"",""]
[null,null,null,null,null,null,null,null,null,null,null,null,null,null,null,null,null,""]
[null,null,null,null,null,null,null,null,null,null,null,null,null,null,null,null,"",""]
[null,null,null,null,null,null,null,null,null,null,null,null,null,null,null,null,null,""]
[null,null,null,null,null,null,null,null,null,null,null,null,null,null,null,null,null,""]
[]
[]
[]
[]
[]
[]
[]
[]
[]
[]
[]
[]
[]
[]
[]
[]
[]
[]
[]
[]
[]
[]
[]
[]
[]
[]
[]
[]
[]
[]
[]
[]
[]
[]
[]
[]
[]
[]
[]
[]
[]
[]
[]
[]
[]
[]
[]
[]
[]
[]
[]
[]
["https://fr.xvideos.com/video1005444/frenchgfs_archives_video_volees_partie_69"]